bitfinex/quotes_SOLUSD_20240822
["timestamp","ask_amount","ask_price","bid_price","bid_amount"]
[1724314487058,1.74363785,143.4,143.34,6.9762]
[1724314487381,19.19671139,143.41,143.34,6.9762]
[1724314492792,19.19671139,143.41,143.34,17.4562]
[1724314493090,17.4531,143.41,143.34,17.4562]
[1724314493592,19.19662281,143.41,143.34,17.4562]
[1724314494091,19.19662281,143.41,143.34,6.9762]
[1724314494472,6.9735,143.4,143.33,24.4188]
[1724314494672,19.19764448,143.39,143.32,6.9772]
[1724314495267,19.19764448,143.39,143.31,22.87]
[1724314495482,1.74374448,143.39,143.32,20.0]
[1724314495684,10.48,143.4,143.32,47.923]
[1724314496587,17.4535,143.4,143.33,6.9767]
[1724314497098,6.9741,143.39,143.32,54.9003]
[1724314497277,8.71780353,143.39,143.32,54.9003]
[1724314497591,1.74370353,143.39,143.32,54.9003]
[1724314498175,8.71770353,143.39,143.32,44.4203]
[1724314502610,6.975,143.37,143.31,15.8924]
[1724314502811,1.74399195,143.36,143.31,15.8924]
[1724314503116,10.48,143.36,143.29,23.8834]
[1724314503327,10.48,143.38,143.3,10.48]
[1724314504124,17.4546,143.38,143.31,6.9775]
[1724314505730,10.48,143.38,143.32,6.9773]
[1724314506029,6.9741,143.39,143.32,17.4573]
[1724314506237,6.9736,143.4,143.33,8.37180087]
[1724314507137,6.974,143.39,143.33,1.39500087]
[1724314507347,6.974,143.39,143.32,17.4573]
[1724314509534,17.454,143.39,143.32,17.4573]
[1724314509833,17.4542,143.39,143.32,10.48]
[1724314510036,17.4542,143.39,143.32,17.4572]
[1724314510621,19.19793865,143.39,143.32,6.9772]
[1724314510824,17.4553,143.37,143.31,16.2638]
[1724314511143,1.74410773,143.36,143.31,16.2638]
[1724314511332,10.48,143.37,143.31,16.2638]
[1724314512454,6.9746,143.38,143.31,16.2638]
[1724314512455,6.9746,143.38,143.32,1.39515364]
[1724314512748,6.9746,143.38,143.31,23.2416]
[1724314514958,1.74392702,143.37,143.31,23.2416]
[1724314515136,12.22392702,143.37,143.31,16.2638]
[1724314515642,19.19892702,143.37,143.31,16.2638]
[1724314515848,1.74411019,143.36,143.31,16.2638]
[1724314517145,6.976,143.35,143.31,16.2638]
[1724314517382,19.20027328,143.35,143.29,6.4373]
[1724314518152,12.22427328,143.35,143.29,6.4373]
[1724314518834,19.20027328,143.35,143.29,6.4373]
[1724314519148,19.20027328,143.35,143.28,23.074]
[1724314519452,6.9765,143.34,143.28,16.0947]
[1724314519654,19.20027328,143.35,143.28,16.0947]
[1724314520631,19.20027328,143.35,143.28,23.074]
[1724314524265,12.22427328,143.35,143.28,16.0947]
[1724314524561,10.48,143.33,143.28,16.0947]
[1724314525633,1.74445012,143.32,143.28,16.0947]
[1724314525860,1.74445012,143.32,143.26,13.319]
[1724314526039,1.74445012,143.32,143.26,6.9801]
[1724314527660,8.72185012,143.32,143.25,6.9806]
[1724314528159,8.72185012,143.32,143.24,40.5855]
[1724314528160,17.458,143.31,143.24,40.5855]
[1724314528454,1.74479116,143.3,143.24,40.5855]
[1724314529863,17.458,143.31,143.24,40.5855]
[1724314530150,1.74484728,143.3,143.24,40.5855]
[1724314532041,6.9784,143.3,143.24,33.6043]
[1724314532371,1.74484885,143.29,143.24,16.1523]
[1724314534170,6.9784,143.3,143.24,16.1523]
[1724314534343,17.458,143.31,143.24,23.1333]
[1724314534676,6.978,143.31,143.24,23.1333]
[1724314535135,8.72273527,143.31,143.24,23.1333]
[1724314535539,6.978,143.31,143.24,23.1333]
[1724314535773,23.7007,143.32,143.25,69.4326]
[1724314537264,6.977,143.33,143.26,8.37591196]
[1724314537468,6.977,143.33,143.26,6.9802]
[1724314538180,6.0507,143.36,143.27,17.4489]
[1724314538475,17.4567,143.34,143.27,17.4489]
[1724314539371,6.9772,143.33,143.25,51.9807]
[1724314539554,6.9772,143.33,143.25,45.0]
[1724314539894,8.72171001,143.33,143.25,45.0]
[1724314540381,10.48,143.3,143.24,33.6048]
[1724314540552,10.48,143.3,143.25,6.9807]
[1724314540758,17.4575,143.32,143.25,6.9807]
[1724314541167,1.7447116,143.31,143.25,6.9807]
[1724314541555,10.48,143.3,143.24,40.5859]
[1724314544674,10.48,143.3,143.24,33.6048]
[1724314545780,1.74491291,143.29,143.24,33.6048]
[1724314545957,10.48,143.3,143.24,33.6048]
[1724314546883,1.74493584,143.29,143.24,33.6048]
[1724314547979,10.48,143.3,143.24,33.6048]
[1724314548954,10.48,143.3,143.24,40.5859]
[1724314549160,10.48,143.3,143.24,24.4336]
[1724314549363,1.74514143,143.29,143.22,0.8533722]
[1724314549672,17.459,143.29,143.23,1.39613985]
[1724314549868,10.48,143.29,143.24,1.39600043]
[1724314550380,13.1128,143.31,143.24,8.37720043]
[1724314550593,15.8191,143.32,143.25,6.9807]
[1724314550883,15.8191,143.32,143.26,1.39571884]
[1724314551190,22.7966,143.32,143.26,1.39571884]
[1724314551975,22.7966,143.32,143.25,17.4516]
[1724314552174,22.7966,143.32,143.26,1.39573491]
[1724314552900,10.48,143.33,143.26,17.4602]
[1724314553398,1.74454765,143.32,143.26,6.9802]
[1724314553764,1.74454765,143.32,143.25,40.8773]
[1724314554094,10.48,143.31,143.25,17.4516]
[1724314554271,10.48,143.31,143.23,0.12549]
[1724314554272,10.48,143.29,143.23,6.9817]
[1724314554478,12.22494981,143.29,143.23,6.9817]
[1724314554679,12.22494981,143.29,143.22,41.3837722]
[1724314554908,10.48,143.27,143.22,18.3083722]
[1724314555272,10.48,143.27,143.22,0.8533722]
[1724314555596,12.22523949,143.27,143.22,0.8533722]
[1724314555981,1.74525714,143.26,143.22,0.8533722]
[1724314556166,10.48,143.25,143.22,0.8533722]
[1724314556570,1.74533997,143.24,143.22,0.8533722]
[1724314556767,10.48,143.23,143.22,0.8533722]
[1724314557199,12.22553519,143.23,143.22,0.8533722]
[1724314557397,10.48,143.23,143.22,0.8533722]
[1724314558602,31.8994,143.25,143.22,0.8533722]
[1724314558801,33.64496906,143.25,143.22,0.8533722]
[1724314559175,31.8994,143.25,143.22,0.8533722]
[1724314559599,33.64496996,143.25,143.22,0.8533722]
[1724314560107,31.8994,143.25,143.22,0.8533722]
[1724314560506,22.7709,143.29,143.22,0.8533722]
[1724314560804,10.48,143.27,143.22,0.8533722]
[1724314561777,40.2298,143.29,143.22,0.8533722]
[1724314562087,40.2298,143.29,143.22,7.8355722]
[1724314562283,40.2298,143.29,143.23,1.39613207]
[1724314562681,40.2298,143.29,143.22,7.8355722]
[1724314562880,40.2298,143.29,143.22,0.8533722]
[1724314563112,10.48,143.27,143.22,0.8533722]
[1724314563337,1.74540753,143.26,143.22,0.8533722]
[1724314564116,12.22532387,143.27,143.22,0.8533722]
[1724314564320,12.22532387,143.27,143.23,17.454]
[1724314564491,33.2509,143.29,143.23,17.454]
[1724314565408,40.2299,143.29,143.23,17.454]
[1724314566590,40.2299,143.29,143.22,7.8352722]
[1724314566807,40.2299,143.29,143.22,0.8533722]
[1724314567013,6.9793,143.28,143.22,0.8533722]
[1724314567692,1.74524389,143.27,143.22,0.8533722]
[1724314568094,6.9793,143.28,143.22,0.8533722]
[1724314568516,10.48,143.27,143.22,0.8533722]
[1724314568815,12.22524366,143.27,143.22,0.8533722]
[1724314568999,1.74533881,143.26,143.22,0.8533722]
[1724314569407,10.48,143.25,143.22,0.8533722]
[1724314569609,1.74553562,143.24,143.22,0.8533722]
[1724314570023,12.22558546,143.25,143.22,0.8533722]
[1724314570511,10.48,143.26,143.22,0.8533722]
[1724314570815,12.22541207,143.26,143.22,0.8533722]
[1724314571322,17.4594,143.28,143.22,0.8533722]
[1724314571686,1.74523629,143.27,143.22,0.8533722]
[1724314571920,10.48,143.28,143.22,7.8354722]
[1724314572218,10.48,143.31,143.22,28.7887722]
[1724314572427,46.71807867,143.33,143.22,18.3087722]
[1724314572428,1.7450313,143.3,143.22,18.3087722]
[1724314572714,21.74503309,143.31,143.23,6.9814]
[1724314572890,8.72303309,143.31,143.24,6.9811]
[1724314574245,6.9783,143.3,143.23,6.9816]
[1724314574422,1.74504836,143.29,143.23,6.9816]
[1724314575539,1.745048,143.3,143.24,6.9812]
[1724314578437,1.74493,143.29,143.23,6.9816]
[1724314580129,6.9784,143.3,143.23,6.9816]
[1724314580335,1.74516631,143.29,143.23,6.9816]
[1724314580946,6.9794,143.28,143.22,0.8533722]
[1724314581241,1.74513746,143.28,143.22,20.8533722]
[1724314581432,1.74507865,143.29,143.23,6.9817]
[1724314582026,33.1986,143.3,143.23,6.9817]
[1724314582536,1.74508053,143.29,143.23,6.9817]
[1724314582838,8.72398053,143.29,143.22,7.8354722]
[1724314583245,33.45038,143.28,143.22,0.8533722]
[1724314583543,1.74537946,143.27,143.22,0.8533722]
[1724314583914,6.9789,143.29,143.22,7.8355722]
[1724314585636,6.9789,143.29,143.22,0.8533722]
[1724314586353,6.9793,143.28,143.22,0.8533722]
[1724314586934,6.9803,143.26,143.22,0.8533722]
[1724314587238,1.74542503,143.25,143.22,0.8533722]
[1724314587846,6.98,143.27,143.22,0.8533722]
[1724314588426,1.74545173,143.26,143.22,0.8533722]
[1724314589126,8.72575173,143.26,143.22,0.8533722]
[1724314589328,34.94595173,143.26,143.22,0.8533722]
[1724314589539,6.9801,143.27,143.22,0.8533722]
[1724314589930,1.74556994,143.26,143.22,0.8533722]
[1724314590630,8.72586994,143.26,143.22,0.8533722]
[1724314591554,6.9803,143.26,143.22,0.8533722]
[1724314591929,33.2003,143.26,143.22,0.8533722]
[1724314592545,10.5,143.25,143.22,0.8533722]
[1724314592856,1.74562296,143.24,143.22,0.8533722]
[1724314594359,10.5,143.25,143.22,0.8533722]
[1724314595453,1.74563898,143.24,143.22,0.8533722]
[1724314596535,1.74565599,143.23,143.22,0.8533722]
[1724314598147,1.74578271,143.23,143.22,0.8533722]
[1724314599066,19.22748271,143.23,143.22,0.8533722]
[1724314599264,19.47846271,143.23,143.22,0.8533722]
[1724314600033,12.24578271,143.23,143.22,0.8533722]
[1724314600348,10.5,143.25,143.22,0.8533722]
[1724314600553,1.74554114,143.24,143.22,0.8533722]
[1724314601245,10.5,143.25,143.22,0.8533722]
[1724314601444,12.24551643,143.25,143.22,0.8533722]
[1724314603366,19.22641643,143.25,143.22,0.8533722]
[1724314603545,10.5,143.23,143.22,0.8533722]
[1724314603764,12.24581362,143.23,143.22,0.8533722]
[1724314604069,10.5,143.23,143.22,0.8533722]
[1724314604242,17.4809,143.25,143.22,0.8533722]
[1724314604657,10.5,143.25,143.22,0.8533722]
[1724314604864,1.74554963,143.24,143.22,0.8533722]
[1724314605243,10.5,143.25,143.22,0.8533722]
[1724314605443,12.24554451,143.25,143.22,0.8533722]
[1724314606649,17.4798,143.27,143.22,0.8533722]
[1724314607479,6.9803,143.26,143.22,0.8533722]
[1724314607668,19.2262498,143.25,143.22,0.8533722]
[1724314607966,1.74569379,143.24,143.22,0.8533722]
[1724314611965,10.5,143.25,143.22,0.8533722]
[1724314613884,7.27559142,143.3,143.22,0.8533722]
[1724314614182,44.18966706,143.32,143.22,0.8533722]
[1724314614183,10.5,143.29,143.22,7.8353722]
[1724314614685,10.5,143.29,143.22,0.8533722]
[1724314614686,6.9794,143.28,143.22,0.8533722]
[1724314615069,12.24540114,143.27,143.22,0.8533722]
[1724314615266,1.74539587,143.26,143.22,0.8533722]
[1724314615975,1.74539587,143.26,143.25,0.349]
[1724314617571,17.4798,143.27,143.25,0.349]
[1724314618354,10.5,143.27,143.25,0.349]
[1724314618865,6.9795,143.28,143.25,0.349]
[1724314619460,17.60449,143.29,143.25,0.349]
[1724314619656,10.5,143.29,143.25,0.349]
[1724314619859,10.5,143.29,143.25,16.2762]
[1724314620489,17.4779,143.31,143.25,16.2762]
[1724314621492,10.5,143.31,143.25,23.2568]
[1724314621703,10.5,143.33,143.26,6.9801]
[1724314621998,7.2823273,143.35,143.28,15.7997]
[1724314621999,10.5,143.35,143.28,15.7997]
[1724314622291,10.5,143.29,143.25,0.349]
[1724314622465,10.5,143.27,143.25,0.349]
[1724314623095,12.24530626,143.27,143.25,0.349]
[1724314623459,19.22520626,143.27,143.25,0.349]
[1724314623697,12.24530626,143.27,143.25,0.349]
[1724314624001,12.24530574,143.27,143.25,0.349]
[1724314624303,1.74530854,143.26,143.25,0.349]
[1724314624676,12.24530533,143.27,143.25,0.349]
[1724314626601,1.74518541,143.28,143.25,0.349]
[1724314626803,17.4785,143.3,143.25,0.349]
[1724314627007,1.74508864,143.29,143.25,0.349]
[1724314627297,8.72398864,143.29,143.25,0.349]
[1724314629208,1.74508864,143.29,143.25,0.349]
[1724314630420,1.74508864,143.29,143.25,15.928]
[1724314634713,8.72398864,143.29,143.25,15.928]
[1724314634893,10.5,143.28,143.25,15.928]
[1724314635093,1.74518066,143.27,143.25,15.928]
[1724314638608,17.4794,143.28,143.25,15.928]
[1724314639489,10.5,143.28,143.25,15.928]
[1724314639704,12.24514607,143.28,143.25,15.928]
[1724314640099,10.5,143.28,143.25,15.928]
[1724314640301,10.5,143.29,143.25,15.928]
[1724314640523,12.2449732,143.29,143.25,15.928]
[1724314641599,10.5,143.29,143.25,15.928]
[1724314642827,12.24497219,143.29,143.25,15.928]
[1724314644002,10.5,143.29,143.25,15.928]
[1724314644203,6.9783,143.3,143.25,21.9954]
[1724314644409,1.74485689,143.3,143.25,21.9954]
[1724314646230,8.72315689,143.3,143.25,21.9954]
[1724314649916,12.24486529,143.29,143.25,21.9954]
[1724314650113,19.22406529,143.29,143.25,21.9954]
[1724314651233,10.5,143.29,143.25,21.9954]
[1724314651407,12.24493689,143.29,143.25,21.9954]
[1724314652936,8.72277252,143.31,143.25,28.9759]
[1724314653630,1.74497252,143.31,143.25,28.9759]
[1724314654218,17.4775,143.32,143.25,28.9759]
[1724314654417,17.4775,143.32,143.26,6.9802]
[1724314654939,1.74465218,143.31,143.26,6.9802]
[1724314656016,12.24465251,143.32,143.26,6.9802]
[1724314656939,10.5,143.32,143.26,6.9802]
[1724314657139,12.24464826,143.32,143.26,6.9802]
[1724314658742,10.5,143.32,143.26,6.9802]
[1724314659045,12.24461447,143.32,143.26,6.9802]
[1724314662917,19.22201447,143.32,143.26,6.9802]
[1724314665751,19.22201447,143.32,143.25,46.4277]
[1724314665949,6.9779,143.31,143.25,46.4277]
[1724314666244,19.22333629,143.3,143.25,21.9954]
[1724314666551,1.74495067,143.29,143.25,21.9954]
[1724314666748,10.5,143.28,143.25,21.9954]
[1724314666921,1.74517168,143.27,143.25,21.9954]
[1724314667254,12.24517168,143.28,143.25,21.9954]
[1724314667571,10.5,143.28,143.25,21.9954]
[1724314668457,10.5,143.3,143.25,21.9954]
[1724314668624,26.48543577,143.33,143.25,21.9954]
[1724314668625,17.4781,143.31,143.25,21.9954]
[1724314668831,1.74487558,143.3,143.25,21.9954]
[1724314670148,19.22271685,143.31,143.25,28.9761]
[1724314670346,10.5,143.31,143.25,28.9761]
[1724314670842,1.74472917,143.32,143.26,6.9802]
[1724314672631,8.72202917,143.32,143.26,6.9802]
[1724314673046,8.72202917,143.32,143.25,28.9761]
[1724314674271,24.77491338,143.33,143.26,6.9799]
[1724314676354,17.477,143.33,143.26,6.9799]
[1724314676544,8.72201411,143.32,143.25,32.4954]
[1724314676869,1.74461411,143.32,143.26,6.9803]
[1724314677167,1.74461411,143.32,143.26,24.4309]
[1724314680856,8.72201411,143.32,143.26,17.4506]
[1724314681162,8.72201411,143.32,143.26,24.4308]
[1724314681463,1.74461411,143.32,143.26,24.4308]
[1724314683769,17.4771,143.33,143.26,24.4308]
[1724314684074,6.9775,143.32,143.26,24.4308]
[1724314684363,1.74461057,143.32,143.26,24.4308]
[1724314685070,10.5,143.33,143.28,16.4757]
[1724314685276,6.9765,143.34,143.28,16.4757]
[1724314686141,6.9765,143.34,143.28,23.455]
[1724314686356,1.74443718,143.33,143.28,23.455]
[1724314687470,6.9765,143.34,143.28,23.455]
[1724314687662,17.476,143.35,143.28,23.455]
[1724314688164,1.74439746,143.34,143.28,23.455]
[1724314691975,17.476,143.35,143.28,40.9033]
[1724314692294,17.476,143.35,143.29,6.0916]
[1724314692664,17.476,143.35,143.29,13.0704]
[1724314694495,17.476,143.35,143.29,6.0916]
[1724314696394,1.74429165,143.34,143.29,6.0916]
[1724314697811,8.72069165,143.34,143.29,6.0916]
[1724314702622,6.9769,143.33,143.29,6.0916]
[1724314702792,17.4769,143.33,143.29,6.0916]
[1724314703393,1.7444654,143.32,143.29,6.0916]
[1724314703594,17.4781,143.31,143.28,16.4757]
[1724314703819,1.74482476,143.3,143.28,16.4757]
[1724314705020,10.5,143.33,143.28,16.4757]
[1724314705526,1.74450525,143.32,143.28,16.4757]
[1724314706120,17.4769,143.33,143.28,16.4757]
[1724314706422,1.74450982,143.32,143.28,16.4757]
[1724314706591,17.4769,143.33,143.28,16.4757]
[1724314707229,1.74450022,143.32,143.28,16.4757]
[1724314707726,17.4769,143.33,143.28,16.4757]
[1724314708032,1.74450595,143.32,143.28,16.4757]
[1724314711111,17.477,143.33,143.28,16.4757]
[1724314712328,1.74450329,143.32,143.28,16.4757]
[1724314712910,17.477,143.33,143.28,16.4757]
[1724314713121,1.7445046,143.32,143.28,16.4757]
[1724314714332,10.5,143.31,143.28,16.4757]
[1724314717018,10.5,143.29,143.28,16.4757]
[1724314717661,1.74471117,143.3,143.28,16.4757]
[1724314718630,17.4779,143.31,143.28,16.4757]
[1724314719744,1.74482884,143.3,143.28,16.4757]
[1724314720441,10.5,143.29,143.28,16.4757]
[1724314720618,12.24488939,143.29,143.28,16.4757]
[1724314720822,12.24488939,143.29,143.25,6.5553]
[1724314721044,19.22378939,143.29,143.25,6.5553]
[1724314721723,17.4789,143.29,143.25,6.5553]
[1724314722345,10.5,143.29,143.25,6.5553]
[1724314722650,12.24494223,143.29,143.25,6.5553]
[1724314723978,19.22384223,143.29,143.25,6.5553]
[1724314724265,10.5,143.29,143.25,6.5553]
[1724314724463,12.24494312,143.29,143.25,6.5553]
[1724314725568,10.5,143.29,143.25,6.5553]
[1724314726239,17.478,143.31,143.25,6.5553]
[1724314728763,10.5,143.31,143.25,13.5359]
[1724314728966,17.4778,143.31,143.25,13.5359]
[1724314729773,17.4772,143.33,143.26,6.9801]
[1724314733063,17.4766,143.34,143.28,15.4099]
[1724314733271,10.5,143.34,143.28,22.3892]
[1724314733742,10.5,143.34,143.29,1.39542384]
[1724314733941,10.5,143.34,143.28,22.3892]
[1724314735535,10.5,143.36,143.3,17.4457]
[1724314735847,17.4746,143.38,143.31,6.9778]
[1724314736368,17.4746,143.38,143.32,16.4153]
[1724314736774,1.7439923,143.37,143.32,16.4153]
[1724314738675,17.4746,143.38,143.32,16.4153]
[1724314739086,6.9745,143.38,143.32,16.4153]
[1724314741482,12.24378757,143.37,143.32,16.4153]
[1724314741779,19.21878757,143.37,143.32,16.4153]
[1724314741949,17.475,143.37,143.32,16.4153]
[1724314742568,6.9746,143.38,143.32,16.4153]
[1724314743083,3.61799982,143.4,143.33,6.5954]
[1724314743257,21.09189982,143.4,143.33,13.5722]
[1724314743587,17.4739,143.4,143.33,13.5722]
[1724314744281,12.24366213,143.4,143.33,6.5954]
[1724314744579,6.9744,143.38,143.33,6.5954]
[1724314746578,17.4744,143.38,143.33,6.5954]
[1724314746780,6.975,143.37,143.33,6.5954]
[1724314747159,19.21849597,143.38,143.33,6.5954]
[1724314748166,17.4746,143.38,143.33,6.5954]
[1724314748570,17.4746,143.38,143.33,7.99048231]
[1724314749258,10.5,143.38,143.33,7.99048231]
[1724314749765,17.4745,143.38,143.33,7.99048231]
[1724314750287,17.4745,143.38,143.33,6.5954]
[1724314750865,17.4754,143.36,143.32,16.4153]
[1724314751065,6.9754,143.36,143.32,16.4153]
[1724314751577,17.4751,143.37,143.32,16.4153]
[1724314752874,6.9755,143.36,143.32,16.4153]
[1724314753077,8.71946659,143.36,143.32,16.4153]
[1724314753388,6.9755,143.36,143.32,16.4153]
[1724314755295,10.5,143.35,143.32,16.4153]
[1724314756182,17.476,143.35,143.32,16.4153]
[1724314756366,10.5,143.33,143.29,6.2201]
[1724314756571,10.5,143.33,143.29,22.4589]
[1724314756877,10.5,143.31,143.29,22.4589]
[1724314757765,10.5,143.31,143.29,16.2388]
[1724314758275,17.4779,143.31,143.25,22.3472]
[1724314759070,10.5,143.29,143.25,22.3472]
[1724314760163,17.4779,143.31,143.25,22.3472]
[1724314762494,10.5,143.31,143.26,1.39571589]
[1724314762697,10.5,143.31,143.27,1.39567741]
[1724314765213,10.5,143.31,143.25,29.3279]
[1724314765588,17.4778,143.31,143.25,29.3279]
[1724314770203,10.5,143.31,143.25,29.3279]
[1724314770597,10.5,143.31,143.26,6.9801]
[1724314770789,17.477,143.33,143.26,6.9801]
[1724314775020,10.5,143.31,143.26,6.9801]
[1724314778910,17.477,143.33,143.26,6.9801]
[1724314785428,10.5,143.33,143.27,6.9796]
[1724314786023,17.477,143.33,143.26,6.98]
[1724314789343,10.5,143.33,143.27,6.9794]
[1724314789548,10.5,143.34,143.28,6.9792]
[1724314789833,10.5,143.34,143.28,8.37474904]
[1724314791747,17.4766,143.34,143.27,17.4494]
[1724314792039,17.4766,143.34,143.28,45.0]
[1724314792444,10.5,143.34,143.28,51.9793]
[1724314793245,10.5,143.34,143.29,6.9787]
[1724314793619,10.5,143.34,143.28,51.9791]
[1724314793848,10.5,143.34,143.28,6.9791]
[1724314797131,17.4765,143.34,143.28,6.9791]
[1724314800328,1.74426292,143.33,143.27,24.4288]
[1724314800530,17.4774,143.32,143.26,0.12549]
[1724314800731,10.5,143.32,143.26,20.0]
[1724314801030,10.5,143.32,143.26,26.9799]
[1724314801244,12.2446017,143.32,143.26,26.9799]
[1724314802844,10.5,143.32,143.27,6.9797]
[1724314803945,17.4765,143.34,143.28,1.39557385]
[1724314804343,17.4765,143.34,143.27,6.9797]
[1724314806444,10.5,143.34,143.28,6.9791]
[1724314806648,6.9755,143.36,143.29,8.37421671]
[1724314806854,10.5,143.36,143.3,6.9783]
[1724314807039,22.9097,143.37,143.31,1.39533124]
[1724314807239,33.4097,143.37,143.31,1.39533124]
[1724314807740,6.9754,143.36,143.31,1.39533124]
[1724314809059,12.24410242,143.35,143.29,6.9787]
[1724314809441,10.5,143.35,143.29,6.9787]
[1724314810559,10.5,143.35,143.3,8.37364834]
[1724314811146,6.9755,143.36,143.3,8.37364834]
[1724314811457,17.4755,143.36,143.3,6.9783]
[1724314813235,10.5,143.36,143.3,6.9783]
[1724314813565,6.9751,143.37,143.31,8.37305413]
[1724314813767,17.4746,143.38,143.31,8.37305413]
[1724314814249,6.9741,143.39,143.32,8.37237681]
[1724314814445,17.4741,143.39,143.33,1.39506948]
[1724314815155,10.5,143.37,143.32,6.9773]
[1724314816064,10.5,143.37,143.3,33.7004]
[1724314816264,10.5,143.37,143.31,45.0]
[1724314816561,10.5,143.37,143.32,6.9773]
[1724314817161,10.5,143.37,143.31,6.9777]
[1724314817368,1.74397759,143.36,143.31,6.9777]
[1724314817542,17.77528144,143.42,143.33,10.5]
[1724314817745,17.4728,143.42,143.35,6.9756]
[1724314817966,1.74349242,143.41,143.35,6.9756]
[1724314818143,17.4728,143.42,143.35,6.9756]
[1724314818467,17.4728,143.42,143.34,62.4408]
[1724314818468,6.973,143.41,143.34,17.4408]
[1724314818769,12.24372122,143.4,143.34,24.417]
[1724314819469,19.21722122,143.4,143.34,24.417]
[1724314819657,17.4735,143.4,143.34,17.4408]
[1724314819857,17.4731,143.41,143.34,24.4172]
[1724314821176,10.5,143.43,143.36,6.9753]
[1724314821668,17.4723,143.43,143.36,6.9753]
[1724314822058,6.9725,143.42,143.36,6.9753]
[1724314822239,10.5,143.43,143.34,17.4408]
[1724314822240,10.5,143.43,143.35,6.9757]
[1724314822444,8.71592396,143.42,143.35,6.9757]
[1724314822966,10.5,143.41,143.35,6.9757]
[1724314823673,1.7435185,143.4,143.35,6.9757]
[1724314823872,1.7435185,143.4,143.34,24.417]
[1724314824075,1.7435185,143.4,143.33,16.8997]
[1724314824076,10.5,143.39,143.33,13.3764]
[1724314824249,17.4743,143.39,143.33,6.3997]
[1724314824867,10.5,143.37,143.32,15.8299]
[1724314825172,1.74404582,143.36,143.32,15.8299]
[1724314825341,10.5,143.35,143.32,15.8299]
[1724314835360,17.4751,143.37,143.32,15.8299]
[1724314835662,10.5,143.37,143.32,15.8299]
[1724314838790,12.24392179,143.37,143.32,15.8299]
[1724314839385,10.5,143.37,143.32,15.8299]
[1724314841809,19.2188113,143.37,143.32,15.8299]
[1724314842796,17.4749,143.37,143.32,15.8299]
[1724314844016,10.5,143.37,143.32,15.8299]
[1724314844183,12.24392297,143.37,143.32,15.8299]
[1724314844793,19.21892297,143.37,143.3,24.4239]
[1724314845606,10.5,143.35,143.29,22.7767]
[1724314846283,17.4763,143.35,143.29,33.2454]
[1724314848814,17.4763,143.35,143.29,40.2242]
[1724314851316,17.4763,143.35,143.29,33.2454]
[1724314851494,17.4763,143.35,143.29,34.64092364]
[1724314852197,17.4763,143.35,143.29,33.2454]
[1724314856325,10.5,143.33,143.28,6.9791]
[1724314856697,12.24444323,143.33,143.28,6.9791]
[1724314857596,10.5,143.33,143.28,6.9791]
[1724314858698,17.4761,143.35,143.29,6.9787]
[1724314858907,17.4761,143.35,143.3,1.39551016]
[1724314860023,17.4761,143.35,143.29,8.37421043]
[1724314860319,17.4761,143.35,143.29,6.9787]
[1724314861612,1.74439112,143.34,143.29,6.9787]
[1724314863129,10.5,143.35,143.29,6.9787]
[1724314863329,10.5,143.35,143.3,1.39551256]
[1724314863511,10.5,143.35,143.29,6.9787]
[1724314864303,10.5,143.35,143.3,1.39547843]
[1724314865900,1.74434974,143.34,143.29,6.9787]
[1724314866232,10.5,143.35,143.3,8.37371358]
[1724314866427,10.5,143.35,143.3,6.9782]
[1724314866650,10.5,143.35,143.31,1.39547923]
[1724314866816,10.5,143.35,143.3,6.9781]
[1724314874732,1.74425369,143.34,143.29,17.447]
[1724314875125,1.74425369,143.34,143.29,24.4255]
[1724314877252,10.5,143.33,143.26,33.5609]